[Event "Early-Titled-Tuesday-Blitz-October-17-2023"]
[Site "Chess.com"]
[Date "2023.10.17"]
[Round "2"]
[White "ivana_999"]
[Black "Doomfist26"]
[Result "0-1"]
[WhiteElo "2106"]
[BlackElo "2633"]
[TimeControl "180+1"]
[EndTime "8:20:48 PDT"]
[Termination "Doomfist26 won by checkmate"]

1. d4 {[%clk 0:03:00.9]} 1... Nf6 {[%clk 0:02:58.9]} 2. c4 {[%clk 0:03:00.8]}
2... g6 {[%clk 0:02:57.5]} 3. Nc3 {[%clk 0:03:00.6]} 3... Bg7 {[%clk 0:02:58.1]}
4. e4 {[%clk 0:03:01]} 4... d6 {[%clk 0:02:58.8]} 5. f4 {[%clk 0:03:01.4]} 5...
c5 {[%clk 0:02:58.1]} 6. d5 {[%clk 0:03:01.4]} 6... O-O {[%clk 0:02:57.7]} 7.
Nf3 {[%clk 0:03:01.9]} 7... e6 {[%clk 0:02:58.3]} 8. Be2 {[%clk 0:03:02]} 8...
exd5 {[%clk 0:02:58.9]} 9. cxd5 {[%clk 0:03:02.9]} 9... Re8 {[%clk 0:02:59.1]}
10. e5 {[%clk 0:03:03.5]} 10... dxe5 {[%clk 0:02:56.9]} 11. fxe5 {[%clk
0:03:04.4]} 11... Ng4 {[%clk 0:02:57.6]} 12. e6 {[%clk 0:03:05]} 12... fxe6
{[%clk 0:02:53.6]} 13. d6 {[%clk 0:03:05.5]} 13... Nc6 {[%clk 0:02:48.9]} 14.
Bg5 {[%clk 0:02:59.7]} 14... Qb6 {[%clk 0:02:48.2]} 15. Na4 {[%clk 0:02:48.5]}
15... Qb4+ {[%clk 0:02:42.7]} 16. Bd2 {[%clk 0:02:42.9]} 16... Ne3 {[%clk
0:01:43.9]} 17. Bxb4 {[%clk 0:02:25.4]} 17... Nxd1 {[%clk 0:01:42.6]} 18. Nxc5
{[%clk 0:01:57.2]} 18... Ne3 {[%clk 0:01:27.9]} 19. Kf2 {[%clk 0:01:28]} 19...
Nc2 {[%clk 0:00:59.7]} 20. Rad1 {[%clk 0:01:23.3]} 20... N2xb4 {[%clk
0:00:55.3]} 21. d7 {[%clk 0:01:17.3]} 21... Bxd7 {[%clk 0:00:55.5]} 22. Rxd7
{[%clk 0:01:12.1]} 22... b6 {[%clk 0:00:55.8]} 23. Ne4 {[%clk 0:00:52.5]} 23...
Nd5 {[%clk 0:00:55.7]} 24. Bb5 {[%clk 0:00:49.5]} 24... Nd4 {[%clk 0:00:52.7]}
25. Nxd4 {[%clk 0:00:44.8]} 25... Bxd4+ {[%clk 0:00:52.5]} 26. Ke2 {[%clk
0:00:42]} 26... Rf8 {[%clk 0:00:45.4]} 27. Bc6 {[%clk 0:00:37.3]} 27... Rad8
{[%clk 0:00:30.2]} 28. Rxd8 {[%clk 0:00:25.9]} 28... Rxd8 {[%clk 0:00:30]} 29.
Bxd5 {[%clk 0:00:25.9]} 29... exd5 {[%clk 0:00:30.2]} 30. Nc3 {[%clk 0:00:25.2]}
30... Bf6 {[%clk 0:00:23.3]} 31. Rf1 {[%clk 0:00:20.5]} 31... Kg7 {[%clk
0:00:22.3]} 32. Rd1 {[%clk 0:00:20.2]} 32... d4 {[%clk 0:00:22.3]} 33. Ne4
{[%clk 0:00:20.3]} 33... Be5 {[%clk 0:00:22.5]} 34. Kd3 {[%clk 0:00:20.3]} 34...
Bf4 {[%clk 0:00:20.5]} 35. g3 {[%clk 0:00:20.6]} 35... Be3 {[%clk 0:00:20.8]}
36. Rf1 {[%clk 0:00:20.9]} 36... Rc8 {[%clk 0:00:16]} 37. Nd6 {[%clk 0:00:19.4]}
37... Rd8 {[%clk 0:00:13.8]} 38. Nc4 {[%clk 0:00:15.6]} 38... Bg5 {[%clk
0:00:11.4]} 39. Ne5 {[%clk 0:00:14.3]} 39... Bf6 {[%clk 0:00:09.9]} 40. Ng4
{[%clk 0:00:14.5]} 40... Be7 {[%clk 0:00:09.5]} 41. Ne5 {[%clk 0:00:14]} 41...
Bf6 {[%clk 0:00:07.9]} 42. Ng4 {[%clk 0:00:13.8]} 42... Bg5 {[%clk 0:00:08.2]}
43. Ne5 {[%clk 0:00:13.3]} 43... Rd5 {[%clk 0:00:08.3]} 44. Nc4 {[%clk
0:00:09.6]} 44... Bf6 {[%clk 0:00:06.9]} 45. h4 {[%clk 0:00:09.5]} 45... b5
{[%clk 0:00:07.2]} 46. Nd2 {[%clk 0:00:09.5]} 46... Re5 {[%clk 0:00:07.3]} 47.
Ne4 {[%clk 0:00:09.7]} 47... Rf5 {[%clk 0:00:07.5]} 48. Rxf5 {[%clk 0:00:09.2]}
48... gxf5 {[%clk 0:00:08.3]} 49. Nd6 {[%clk 0:00:09.4]} 49... Kg6 {[%clk
0:00:07.8]} 50. Nxb5 {[%clk 0:00:09.7]} 50... Be5 {[%clk 0:00:08.3]} 51. Nxd4
{[%clk 0:00:09.8]} 51... Bxg3 {[%clk 0:00:08.7]} 52. Nf3 {[%clk 0:00:09.7]}
52... Kh5 {[%clk 0:00:06.6]} 53. Ke2 {[%clk 0:00:09.5]} 53... Bxh4 {[%clk
0:00:06.7]} 54. b4 {[%clk 0:00:08.1]} 54... Kg4 {[%clk 0:00:07]} 55. a4 {[%clk
0:00:07.9]} 55... Be7 {[%clk 0:00:07.6]} 56. b5 {[%clk 0:00:07.5]} 56... Bd8
{[%clk 0:00:08.1]} 57. Ne5+ {[%clk 0:00:07.2]} 57... Kf4 {[%clk 0:00:08.1]} 58.
Nc6 {[%clk 0:00:08]} 58... Bb6 {[%clk 0:00:07.6]} 59. Nxa7 {[%clk 0:00:08.4]}
59... Bxa7 {[%clk 0:00:07.8]} 60. a5 {[%clk 0:00:09.3]} 60... Ke5 {[%clk
0:00:08.1]} 61. b6 {[%clk 0:00:09.7]} 61... Bxb6 {[%clk 0:00:07.3]} 62. axb6
{[%clk 0:00:10.1]} 62... Kd6 {[%clk 0:00:08.1]} 63. Kf3 {[%clk 0:00:10]} 63...
h5 {[%clk 0:00:07.7]} 64. Kf4 {[%clk 0:00:09.4]} 64... h4 {[%clk 0:00:07.8]} 65.
Kf3 {[%clk 0:00:09.2]} 65... Kc6 {[%clk 0:00:08.1]} 66. Kg2 {[%clk 0:00:09.2]}
66... f4 {[%clk 0:00:07]} 67. Kh3 {[%clk 0:00:10.1]} 67... f3 {[%clk 0:00:07.4]}
68. Kh2 {[%clk 0:00:10]} 68... Kxb6 {[%clk 0:00:07.8]} 69. Kg1 {[%clk
0:00:10.2]} 69... h3 {[%clk 0:00:07.7]} 70. Kf2 {[%clk 0:00:11.1]} 70... h2
{[%clk 0:00:08]} 71. Kxf3 {[%clk 0:00:10.5]} 71... h1=Q+ {[%clk 0:00:08.4]} 72.
Kg3 {[%clk 0:00:11.4]} 72... Kc5 {[%clk 0:00:08.2]} 73. Kg4 {[%clk 0:00:12.3]}
73... Kd4 {[%clk 0:00:08.5]} 74. Kg5 {[%clk 0:00:13.2]} 74... Ke5 {[%clk
0:00:08.3]} 75. Kg6 {[%clk 0:00:14.1]} 75... Qg2+ {[%clk 0:00:08.7]} 76. Kh6
{[%clk 0:00:14.2]} 76... Kf6 {[%clk 0:00:07]} 77. Kh5 {[%clk 0:00:15.1]} 77...
Qg5# {[%clk 0:00:07.4]} 0-1

[Event "Early-Titled-Tuesday-Blitz-October-17-2023"]
[Site "Chess.com"]
[Date "2023.10.17"]
[Round "2"]
[White "Roedor"]
[Black "ssunu"]
[Result "1-0"]
[WhiteElo "2413"]
[BlackElo "1932"]
[TimeControl "180+1"]
[EndTime "8:20:50 PDT"]
[Termination "Roedor won by resignation"]

1. d4 {[%clk 0:02:56]} 1... Nf6 {[%clk 0:02:59.1]} 2. c4 {[%clk 0:02:55.7]} 2...
e6 {[%clk 0:02:59.3]} 3. g3 {[%clk 0:02:55.7]} 3... d5 {[%clk 0:02:58.7]} 4. Bg2
{[%clk 0:02:55.7]} 4... dxc4 {[%clk 0:02:54.8]} 5. Qa4+ {[%clk 0:02:49.9]} 5...
c6 {[%clk 0:02:37.1]} 6. Qxc4 {[%clk 0:02:47.6]} 6... Be7 {[%clk 0:02:31.1]} 7.
Nf3 {[%clk 0:02:43.3]} 7... b5 {[%clk 0:02:29]} 8. Qc2 {[%clk 0:02:43]} 8... Bb7
{[%clk 0:02:29.4]} 9. a4 {[%clk 0:02:42.2]} 9... a6 {[%clk 0:02:28.6]} 10. O-O
{[%clk 0:02:41.7]} 10... Qb6 {[%clk 0:02:26.7]} 11. Nc3 {[%clk 0:02:38.5]} 11...
O-O {[%clk 0:02:21.5]} 12. Rd1 {[%clk 0:02:28.9]} 12... c5 {[%clk 0:02:18.9]}
13. dxc5 {[%clk 0:02:28.3]} 13... Bxc5 {[%clk 0:02:18.7]} 14. e3 {[%clk
0:02:18.1]} 14... Nc6 {[%clk 0:02:17.7]} 15. axb5 {[%clk 0:02:15.9]} 15... axb5
{[%clk 0:02:17.8]} 16. Rxa8 {[%clk 0:02:16.8]} 16... Rxa8 {[%clk 0:02:17.5]} 17.
Ng5 {[%clk 0:02:06.6]} 17... h6 {[%clk 0:02:12.6]} 18. Nge4 {[%clk 0:02:06.4]}
18... Nxe4 {[%clk 0:02:10.3]} 19. Nxe4 {[%clk 0:02:07.3]} 19... Be7 {[%clk
0:02:06.2]} 20. Nd6 {[%clk 0:02:07.5]} 20... Bxd6 {[%clk 0:02:00.9]} 21. Rxd6
{[%clk 0:02:08.4]} 21... Rc8 {[%clk 0:01:55.7]} 22. Bd2 {[%clk 0:02:04.7]} 22...
Qc7 {[%clk 0:01:51.1]} 23. Qc5 {[%clk 0:01:38.3]} 23... Ne7 {[%clk 0:01:29.5]}
24. Qxc7 {[%clk 0:01:37.2]} 24... Rxc7 {[%clk 0:01:28.9]} 25. Bxb7 {[%clk
0:01:11.7]} 25... Rxb7 {[%clk 0:01:29.8]} 26. e4 {[%clk 0:01:07.8]} 26... e5
{[%clk 0:01:21.3]} 27. Bc3 {[%clk 0:01:06.8]} 27... Ng6 {[%clk 0:01:16]} 28. h4
{[%clk 0:01:04.9]} 28... h5 {[%clk 0:01:14.6]} 29. Kf1 {[%clk 0:01:02.1]} 29...
b4 {[%clk 0:01:13.4]} 30. Bd2 {[%clk 0:00:58.3]} 30... Rb5 {[%clk 0:01:11.6]}
31. Ke2 {[%clk 0:00:55.8]} 31... Nf8 {[%clk 0:01:07.3]} 32. Rd5 {[%clk
0:00:51.6]} 32... Rb6 {[%clk 0:00:56.4]} 33. Rxe5 {[%clk 0:00:51.2]} 33... Ne6
{[%clk 0:00:53]} 34. Rd5 {[%clk 0:00:47.2]} 34... g6 {[%clk 0:00:50.2]} 35. Kd3
{[%clk 0:00:43.6]} 35... Kg7 {[%clk 0:00:41.7]} 36. f4 {[%clk 0:00:40.6]} 36...
Nc7 {[%clk 0:00:38.9]} 37. Rd7 {[%clk 0:00:38.3]} 37... Ne6 {[%clk 0:00:37.5]}
38. Be3 {[%clk 0:00:37.3]} 38... Rb5 {[%clk 0:00:35]} 39. Rd5 {[%clk 0:00:36.3]}
39... Rb7 {[%clk 0:00:33.4]} 40. f5 {[%clk 0:00:36.5]} 40... Nc7 {[%clk
0:00:25.6]} 41. Bd4+ {[%clk 0:00:36]} 41... Kf8 {[%clk 0:00:22.3]} 42. Rd6
{[%clk 0:00:34.5]} 42... Nb5 {[%clk 0:00:20.4]} 43. Rd5 {[%clk 0:00:22.4]} 43...
Nc7 {[%clk 0:00:18.8]} 44. Bc5+ {[%clk 0:00:22.5]} 44... Ke8 {[%clk 0:00:17.9]}
45. Re5+ {[%clk 0:00:22]} 45... Kd8 {[%clk 0:00:17.3]} 46. fxg6 {[%clk
0:00:21.3]} 46... fxg6 {[%clk 0:00:17.7]} 47. Rg5 {[%clk 0:00:21.5]} 47... Ne6
{[%clk 0:00:16.4]} 48. Rd5+ {[%clk 0:00:20.5]} 48... Ke8 {[%clk 0:00:15.7]} 49.
Be3 {[%clk 0:00:21.4]} 49... Kf7 {[%clk 0:00:14.8]} 50. Kc4 {[%clk 0:00:21.1]}
50... Nc7 {[%clk 0:00:13.8]} 51. Rc5 {[%clk 0:00:18.5]} 51... Ne6 {[%clk
0:00:13.3]} 52. Rb5 {[%clk 0:00:18.4]} 52... Rc7+ {[%clk 0:00:12.9]} 53. Kxb4
{[%clk 0:00:18.3]} 53... Rc2 {[%clk 0:00:13.5]} 54. b3 {[%clk 0:00:17.7]} 54...
Re2 {[%clk 0:00:13.1]} 55. Rb7+ {[%clk 0:00:16.3]} 55... Ke8 {[%clk 0:00:13.3]}
56. Bg5 {[%clk 0:00:15]} 56... Rxe4+ {[%clk 0:00:14.2]} 57. Kb5 {[%clk
0:00:15.1]} 57... Nd4+ {[%clk 0:00:14]} 58. Kc5 {[%clk 0:00:14.1]} 58... Ne6+
{[%clk 0:00:13.4]} 59. Kd6 {[%clk 0:00:14.5]} 59... Nxg5 {[%clk 0:00:14.3]} 60.
hxg5 {[%clk 0:00:14.8]} 60... Re3 {[%clk 0:00:14.8]} 61. b4 {[%clk 0:00:14.9]}
61... Rxg3 {[%clk 0:00:14.9]} 62. b5 {[%clk 0:00:15.5]} 62... Rxg5 {[%clk
0:00:14.9]} 63. b6 {[%clk 0:00:15.6]} 63... Rb5 {[%clk 0:00:15]} 64. Kc6 {[%clk
0:00:16]} 64... Rb2 {[%clk 0:00:14]} 65. Rg7 {[%clk 0:00:16.2]} 65... Rc2+
{[%clk 0:00:12.9]} 66. Kd6 {[%clk 0:00:15.9]} 66... Rd2+ {[%clk 0:00:13]} 67.
Kc6 {[%clk 0:00:16.2]} 67... Rc2+ {[%clk 0:00:13.1]} 68. Kb7 {[%clk 0:00:16.2]}
68... Rg2 {[%clk 0:00:12.1]} 69. Kc8 {[%clk 0:00:14.6]} 69... Rc2+ {[%clk
0:00:12]} 70. Kb8 {[%clk 0:00:14.3]} 70... Kf8 {[%clk 0:00:11.4]} 71. Rc7 {[%clk
0:00:14.3]} 71... Rb2 {[%clk 0:00:11.2]} 72. b7 {[%clk 0:00:14.5]} 72... g5
{[%clk 0:00:11.4]} 73. Kc8 {[%clk 0:00:14.1]} 73... Ke8 {[%clk 0:00:10.4]} 74.
b8=Q {[%clk 0:00:12.1]} 74... Rxb8+ {[%clk 0:00:11.3]} 75. Kxb8 {[%clk 0:00:13]}
75... g4 {[%clk 0:00:10.7]} 76. Rc5 {[%clk 0:00:13]} 76... Kf7 {[%clk
0:00:10.7]} 77. Rxh5 {[%clk 0:00:12.8]} 77... Kg6 {[%clk 0:00:11.6]} 78. Rb5
{[%clk 0:00:12.3]} 78... g3 {[%clk 0:00:10.8]} 79. Rb3 {[%clk 0:00:12.4]} 79...
Kf5 {[%clk 0:00:10.9]} 80. Rxg3 {[%clk 0:00:12.8]} 80... Kf4 {[%clk 0:00:11.7]}
81. Rg8 {[%clk 0:00:13.4]} 1-0

[Event "Early-Titled-Tuesday-Blitz-October-17-2023"]
[Site "Chess.com"]
[Date "2023.10.17"]
[Round "2"]
[White "pankajfm"]
[Black "schack_vit"]
[Result "1-0"]
[WhiteElo "2127"]
[BlackElo "2410"]
[TimeControl "180+1"]
[EndTime "8:20:59 PDT"]
[Termination "pankajfm won by resignation"]

1. e4 {[%clk 0:03:00.9]} 1... c5 {[%clk 0:03:00]} 2. Nc3 {[%clk 0:02:59.9]} 2...
Nc6 {[%clk 0:02:59.6]} 3. g3 {[%clk 0:03:00.5]} 3... g6 {[%clk 0:02:59.5]} 4.
Bg2 {[%clk 0:03:01.2]} 4... Bg7 {[%clk 0:03:00.4]} 5. d3 {[%clk 0:03:01.4]} 5...
e6 {[%clk 0:03:00.7]} 6. f4 {[%clk 0:03:02.1]} 6... Nge7 {[%clk 0:03:01.6]} 7.
Be3 {[%clk 0:03:02.1]} 7... b6 {[%clk 0:02:59.5]} 8. Nf3 {[%clk 0:02:59.3]} 8...
Bb7 {[%clk 0:02:59.5]} 9. O-O {[%clk 0:02:59]} 9... d5 {[%clk 0:03:00.1]} 10.
Bf2 {[%clk 0:02:59.3]} 10... O-O {[%clk 0:02:59.3]} 11. h3 {[%clk 0:02:47]}
11... Nd4 {[%clk 0:02:52.1]} 12. Nxd4 {[%clk 0:02:44.4]} 12... cxd4 {[%clk
0:02:52.3]} 13. Ne2 {[%clk 0:02:45]} 13... dxe4 {[%clk 0:02:51.6]} 14. dxe4
{[%clk 0:02:43]} 14... Ba6 {[%clk 0:02:17.4]} 15. e5 {[%clk 0:02:40.1]} 15...
Rc8 {[%clk 0:02:17.5]} 16. Re1 {[%clk 0:02:26]} 16... d3 {[%clk 0:01:25.5]} 17.
cxd3 {[%clk 0:02:24.5]} 17... Bxd3 {[%clk 0:01:26.4]} 18. Nd4 {[%clk 0:02:08.3]}
18... Ba6 {[%clk 0:01:24.3]} 19. Qa4 {[%clk 0:02:05]} 19... Bd3 {[%clk
0:01:12.5]} 20. Rad1 {[%clk 0:02:03.2]} 20... Rc4 {[%clk 0:01:10.5]} 21. Qb3
{[%clk 0:01:30.7]} 21... Rxd4 {[%clk 0:01:09.9]} 22. Bxd4 {[%clk 0:01:31.6]}
22... Qxd4+ {[%clk 0:01:10.3]} 23. Kh2 {[%clk 0:01:32.3]} 23... Rd8 {[%clk
0:01:08.3]} 24. Qc3 {[%clk 0:01:23.3]} 24... Qf2 {[%clk 0:00:48.5]} 25. Qd2
{[%clk 0:01:02.9]} 25... Qxd2 {[%clk 0:00:29.3]} 26. Rxd2 {[%clk 0:01:03.8]}
26... Rd7 {[%clk 0:00:25.1]} 27. Red1 {[%clk 0:01:03.8]} 27... f6 {[%clk
0:00:23.4]} 28. exf6 {[%clk 0:00:56.6]} 28... Bxf6 {[%clk 0:00:24.3]} 29. Rxd3
{[%clk 0:00:57.2]} 29... Rxd3 {[%clk 0:00:24.4]} 30. Rxd3 {[%clk 0:00:58.1]}
30... Bxb2 {[%clk 0:00:24.7]} 31. Rd7 {[%clk 0:00:58.8]} 31... Kf7 {[%clk
0:00:23.7]} 32. Rxa7 {[%clk 0:00:57.9]} 32... Bd4 {[%clk 0:00:23.8]} 33. Rb7
{[%clk 0:00:56.4]} 33... h5 {[%clk 0:00:23.1]} 34. Be4 {[%clk 0:00:55]} 34...
Kf6 {[%clk 0:00:23.2]} 35. g4 {[%clk 0:00:52.3]} 35... hxg4 {[%clk 0:00:22.6]}
36. hxg4 {[%clk 0:00:53.2]} 36... Bc5 {[%clk 0:00:11.1]} 37. Kg3 {[%clk
0:00:51.9]} 37... e5 {[%clk 0:00:08.1]} 38. fxe5+ {[%clk 0:00:49.2]} 38... Kxe5
{[%clk 0:00:08.2]} 39. Bd3 {[%clk 0:00:46.6]} 39... Kf6 {[%clk 0:00:08.4]} 40.
a4 {[%clk 0:00:44]} 40... Nd5 {[%clk 0:00:08.1]} 41. Bc4 {[%clk 0:00:42.7]}
41... Ne3 {[%clk 0:00:08]} 42. Rf7+ {[%clk 0:00:40.8]} 42... Ke5 {[%clk
0:00:06.4]} 43. Bb5 {[%clk 0:00:40.9]} 43... Nd5 {[%clk 0:00:06]} 44. Bd3 {[%clk
0:00:39.4]} 44... Ne7 {[%clk 0:00:04.5]} 45. Rg7 {[%clk 0:00:35.4]} 45... Kf6
{[%clk 0:00:04.7]} 46. Rh7 {[%clk 0:00:35.9]} 46... Bd6+ {[%clk 0:00:03.8]} 47.
Kf3 {[%clk 0:00:35.9]} 47... Bc5 {[%clk 0:00:04.7]} 48. Bb5 {[%clk 0:00:34.8]}
48... Bd6 {[%clk 0:00:04.4]} 49. Rh1 {[%clk 0:00:34.2]} 49... Bc5 {[%clk
0:00:04.6]} 50. Rd1 {[%clk 0:00:34.2]} 50... g5 {[%clk 0:00:03.5]} 51. Rh1
{[%clk 0:00:31.3]} 51... Ng6 {[%clk 0:00:03.6]} 52. Rh6 {[%clk 0:00:25.9]} 52...
Kg7 {[%clk 0:00:03.6]} 53. Rh5 {[%clk 0:00:26.4]} 53... Kf6 {[%clk 0:00:03.9]}
54. Rh7 {[%clk 0:00:23.4]} 54... Ne5+ {[%clk 0:00:04.2]} 55. Kg3 {[%clk
0:00:22.7]} 55... Bd6 {[%clk 0:00:03.7]} 56. Kh3 {[%clk 0:00:23.2]} 56... Ng6
{[%clk 0:00:02.2]} 57. Kg2 {[%clk 0:00:18.4]} 57... Bc5 {[%clk 0:00:02.5]} 58.
Rb7 {[%clk 0:00:17.7]} 58... Nf4+ {[%clk 0:00:03.4]} 59. Kf3 {[%clk 0:00:17.8]}
59... Ke5 {[%clk 0:00:04]} 60. Bd7 {[%clk 0:00:17.1]} 60... Nd5 {[%clk 0:00:04]}
61. Bf5 {[%clk 0:00:17.1]} 61... Nf6 {[%clk 0:00:04.2]} 62. Rg7 {[%clk
0:00:16.7]} 62... Nd5 {[%clk 0:00:01.7]} 63. Rxg5 {[%clk 0:00:16.8]} 63... Kf6
{[%clk 0:00:02]} 64. Rg6+ {[%clk 0:00:17]} 64... Ke7 {[%clk 0:00:02.9]} 65. Re6+
{[%clk 0:00:16.9]} 65... Kf7 {[%clk 0:00:02.8]} 66. Rc6 {[%clk 0:00:16.1]} 66...
Ne7 {[%clk 0:00:03.4]} 67. Rc7 {[%clk 0:00:15.8]} 67... Kf6 {[%clk 0:00:03.3]}
68. Bd3 {[%clk 0:00:14.2]} 68... Nd5 {[%clk 0:00:03.4]} 69. Rc6+ {[%clk
0:00:14.8]} 69... Ke5 {[%clk 0:00:03.3]} 70. Be4 {[%clk 0:00:15]} 70... Ne7
{[%clk 0:00:03.9]} 71. Rh6 {[%clk 0:00:14.5]} 71... Ng8 {[%clk 0:00:02.3]} 72.
Rh8 {[%clk 0:00:14.3]} 72... Ne7 {[%clk 0:00:03.2]} 73. g5 {[%clk 0:00:14.2]}
73... Nd5 {[%clk 0:00:02.8]} 74. Bxd5 {[%clk 0:00:13.7]} 74... Kxd5 {[%clk
0:00:03.7]} 75. g6 {[%clk 0:00:14.6]} 75... Bd4 {[%clk 0:00:04.4]} 76. Rh7
{[%clk 0:00:13.1]} 76... Kc5 {[%clk 0:00:04.6]} 77. g7 {[%clk 0:00:13.5]} 77...
Bxg7 {[%clk 0:00:04.6]} 78. Rxg7 {[%clk 0:00:13.9]} 78... Kb4 {[%clk 0:00:05.5]}
79. Rb7 {[%clk 0:00:14.3]} 79... Ka5 {[%clk 0:00:06.4]} 80. Rb8 {[%clk
0:00:14.2]} 80... Ka6 {[%clk 0:00:07.3]} 81. Ke4 {[%clk 0:00:13.9]} 81... Ka5
{[%clk 0:00:08.2]} 82. Kd5 {[%clk 0:00:13.5]} 82... Ka6 {[%clk 0:00:09.1]} 1-0

[Event "Early-Titled-Tuesday-Blitz-October-17-2023"]
[Site "Chess.com"]
[Date "2023.10.17"]
[Round "2"]
[White "Aswathchess"]
[Black "Rosh1610"]
[Result "0-1"]
[WhiteElo "2645"]
[BlackElo "2454"]
[TimeControl "180+1"]
[EndTime "8:21:41 PDT"]
[Termination "Rosh1610 won by checkmate"]

1. e4 {[%clk 0:03:00.9]} 1... c5 {[%clk 0:02:59]} 2. Nc3 {[%clk 0:03:00.3]} 2...
Nc6 {[%clk 0:02:57.8]} 3. Bb5 {[%clk 0:02:57.3]} 3... Nd4 {[%clk 0:02:56.9]} 4.
Nf3 {[%clk 0:02:56.2]} 4... Nxb5 {[%clk 0:02:55.2]} 5. Nxb5 {[%clk 0:02:57.1]}
5... e6 {[%clk 0:02:51.8]} 6. O-O {[%clk 0:02:56.6]} 6... a6 {[%clk 0:02:50.7]}
7. Nc3 {[%clk 0:02:56.8]} 7... d6 {[%clk 0:02:50.6]} 8. d4 {[%clk 0:02:56.9]}
8... cxd4 {[%clk 0:02:50.1]} 9. Qxd4 {[%clk 0:02:57.8]} 9... Nf6 {[%clk
0:02:49.9]} 10. Bg5 {[%clk 0:02:55.9]} 10... Be7 {[%clk 0:02:50]} 11. Rfd1
{[%clk 0:02:55.5]} 11... Bd7 {[%clk 0:02:21.4]} 12. e5 {[%clk 0:02:53.6]} 12...
dxe5 {[%clk 0:02:16.9]} 13. Nxe5 {[%clk 0:02:54.5]} 13... Bc6 {[%clk 0:01:54.4]}
14. Nxc6 {[%clk 0:02:41.8]} 14... bxc6 {[%clk 0:01:52.4]} 15. Qc4 {[%clk
0:02:14.4]} 15... Qc7 {[%clk 0:01:45.7]} 16. Bf4 {[%clk 0:02:03.5]} 16... Qb7
{[%clk 0:01:43.9]} 17. Be5 {[%clk 0:01:41.7]} 17... O-O {[%clk 0:01:41.7]} 18.
b3 {[%clk 0:01:30.5]} 18... Nd5 {[%clk 0:01:31.9]} 19. Qg4 {[%clk 0:01:25.2]}
19... Nf6 {[%clk 0:00:59.7]} 20. Qg3 {[%clk 0:01:25.1]} 20... g6 {[%clk
0:00:50.8]} 21. Rd3 {[%clk 0:01:19.3]} 21... Rfd8 {[%clk 0:00:48.8]} 22. Rad1
{[%clk 0:01:17.2]} 22... Rxd3 {[%clk 0:00:45.9]} 23. Rxd3 {[%clk 0:01:18.1]}
23... Nh5 {[%clk 0:00:18.9]} 24. Qf3 {[%clk 0:01:17.4]} 24... Rd8 {[%clk
0:00:17.9]} 25. g4 {[%clk 0:01:15.6]} 25... Ng7 {[%clk 0:00:16.5]} 26. Ne4
{[%clk 0:01:13.3]} 26... Rxd3 {[%clk 0:00:16]} 27. Qxd3 {[%clk 0:01:14.2]} 27...
Qb5 {[%clk 0:00:08.5]} 28. Qd4 {[%clk 0:01:07.2]} 28... Ne8 {[%clk 0:00:06]} 29.
c4 {[%clk 0:01:02.9]} 29... Qb4 {[%clk 0:00:03.7]} 30. Kg2 {[%clk 0:00:56.9]}
30... Qb7 {[%clk 0:00:03.9]} 31. c5 {[%clk 0:00:50.1]} 31... Qc8 {[%clk
0:00:03.4]} 32. Bd6 {[%clk 0:00:47.2]} 32... Bxd6 {[%clk 0:00:02.4]} 33. cxd6
{[%clk 0:00:47.3]} 33... Qd7 {[%clk 0:00:02.4]} 34. g5 {[%clk 0:00:46.6]} 34...
e5 {[%clk 0:00:02.1]} 35. Qxe5 {[%clk 0:00:44.3]} 35... Qg4+ {[%clk 0:00:02.3]}
36. Ng3 {[%clk 0:00:44.5]} 36... Qd7 {[%clk 0:00:02.3]} 37. Qe7 {[%clk
0:00:37.5]} 37... Qxe7 {[%clk 0:00:02.5]} 38. dxe7 {[%clk 0:00:38.4]} 38... f6
{[%clk 0:00:03.2]} 39. Ne4 {[%clk 0:00:32.3]} 39... fxg5 {[%clk 0:00:03]} 40.
Nxg5 {[%clk 0:00:32.5]} 40... Kg7 {[%clk 0:00:03.3]} 41. b4 {[%clk 0:00:22]}
41... h6 {[%clk 0:00:03.3]} 42. Ne6+ {[%clk 0:00:22.1]} 42... Kf7 {[%clk
0:00:03.7]} 43. Nd8+ {[%clk 0:00:22.2]} 43... Kxe7 {[%clk 0:00:03.5]} 44. Nxc6+
{[%clk 0:00:23.1]} 44... Kd6 {[%clk 0:00:03.7]} 45. Na5 {[%clk 0:00:18.1]} 45...
Kd5 {[%clk 0:00:02.7]} 46. Kf3 {[%clk 0:00:17.9]} 46... Nd6 {[%clk 0:00:02.8]}
47. Ke3 {[%clk 0:00:18.4]} 47... Nf5+ {[%clk 0:00:02.4]} 48. Kd3 {[%clk
0:00:18]} 48... Nd6 {[%clk 0:00:03.1]} 49. Nb3 {[%clk 0:00:17.4]} 49... Ne4
{[%clk 0:00:02.9]} 50. f3 {[%clk 0:00:17.2]} 50... Ng5 {[%clk 0:00:02.3]} 51.
Ke3 {[%clk 0:00:16.9]} 51... Ne6 {[%clk 0:00:02.1]} 52. a3 {[%clk 0:00:16.8]}
52... g5 {[%clk 0:00:02.5]} 53. Na5 {[%clk 0:00:16.7]} 53... Ng7 {[%clk
0:00:02.6]} 54. Kd3 {[%clk 0:00:16.8]} 54... Nf5 {[%clk 0:00:03.5]} 55. Nb3
{[%clk 0:00:16.7]} 55... Nh4 {[%clk 0:00:03.6]} 56. Ke3 {[%clk 0:00:17.2]} 56...
Ng2+ {[%clk 0:00:03.8]} 57. Kd2 {[%clk 0:00:16.7]} 57... Nf4 {[%clk 0:00:04.4]}
58. Ke3 {[%clk 0:00:15.2]} 58... Kc4 {[%clk 0:00:04.3]} 59. Nd4 {[%clk
0:00:14.1]} 59... Nd5+ {[%clk 0:00:04.4]} 60. Ke4 {[%clk 0:00:14.5]} 60... Nf6+
{[%clk 0:00:04.6]} 61. Ke5 {[%clk 0:00:14.8]} 61... Nd7+ {[%clk 0:00:04.8]} 62.
Kd6 {[%clk 0:00:15.1]} 62... Nf6 {[%clk 0:00:04.3]} 63. Nf5 {[%clk 0:00:14.3]}
63... Kb3 {[%clk 0:00:04.3]} 64. Kc5 {[%clk 0:00:13.3]} 64... Kxa3 {[%clk
0:00:04.6]} 65. Nxh6 {[%clk 0:00:13.5]} 65... Nd7+ {[%clk 0:00:04.5]} 66. Kd6
{[%clk 0:00:09.1]} 66... Nf6 {[%clk 0:00:04.6]} 67. Ke5 {[%clk 0:00:08.8]} 67...
Nh7 {[%clk 0:00:04.2]} 68. Nf7 {[%clk 0:00:03.7]} 68... Kxb4 {[%clk 0:00:04.1]}
69. Kf5 {[%clk 0:00:04.3]} 69... a5 {[%clk 0:00:04.4]} 70. Nd6 {[%clk
0:00:04.1]} 70... a4 {[%clk 0:00:03.5]} 71. Kg6 {[%clk 0:00:03.3]} 71... a3
{[%clk 0:00:03.3]} 72. Nf5 {[%clk 0:00:01.4]} 72... a2 {[%clk 0:00:03.3]} 73.
Ne3 {[%clk 0:00:02]} 73... Kc3 {[%clk 0:00:03.8]} 74. Nd1+ {[%clk 0:00:02.4]}
74... Kd2 {[%clk 0:00:03.5]} 75. Nf2 {[%clk 0:00:02.8]} 75... a1=Q {[%clk
0:00:03.7]} 76. Ne4+ {[%clk 0:00:03.5]} 76... Ke3 {[%clk 0:00:02.8]} 77. Kxh7
{[%clk 0:00:04.2]} 77... Kxf3 {[%clk 0:00:03.4]} 78. Nxg5+ {[%clk 0:00:04.7]}
78... Kg4 {[%clk 0:00:04]} 79. Nf7 {[%clk 0:00:04.7]} 79... Kh5 {[%clk
0:00:04.9]} 80. Kg8 {[%clk 0:00:05]} 80... Qa7 {[%clk 0:00:05.1]} 81. Kf8 {[%clk
0:00:05]} 81... Kg6 {[%clk 0:00:05.6]} 82. Nd8 {[%clk 0:00:04.7]} 82... Kf6
{[%clk 0:00:05.5]} 83. Kg8 {[%clk 0:00:04.5]} 83... Qe7 {[%clk 0:00:05.8]} 84.
Nc6 {[%clk 0:00:04]} 84... Qg7# {[%clk 0:00:06.4]} 0-1